bitfinex/quotes_ETHUSD_20250511
["timestamp","ask_amount","ask_price","bid_price","bid_amount"]
[1746992450300,2.737,2518.1,2518.0,0.13920062]
[1746992450682,2.737,2518.1,2517.9,0.397148]
[1746992451376,6.92092337,2518.4,2517.6,0.7716]
[1746992451679,0.7867,2519.5,2518.8,0.7542]
[1746992451896,3.96728476,2520.7,2518.8,0.7542]
[1746992451897,2.736,2519.8,2519.7,0.39687264]
[1746992452194,6.92092337,2519.9,2519.0,1.19087575]
[1746992452195,3.94092337,2519.9,2519.0,1.19087575]
[1746992452479,3.94092337,2519.9,2519.5,0.39689568]
[1746992452684,3.5227,2520.2,2519.1,0.39696717]
[1746992452980,2.736,2520.1,2519.6,0.13122015]
[1746992453181,3.94092337,2520.0,2519.5,0.39689582]
[1746992453335,2.736,2520.1,2519.4,0.03968855]
[1746992453536,2.736,2520.1,2519.7,0.39687264]
[1746992453731,2.735,2520.1,2519.9,0.39684097]
[1746992454534,2.735,2520.1,2519.2,0.7542]
[1746992454535,2.735,2520.1,2519.8,0.3968493]
[1746992454939,3.94092337,2520.3,2519.8,0.3968493]
[1746992455184,3.94092337,2520.3,2519.9,0.39684044]
[1746992455185,2.735,2520.2,2519.9,0.39684044]
[1746992455370,2.735,2520.2,2519.8,0.39685085]
[1746992455564,2.735,2520.2,2519.7,0.39686058]
[1746992455770,6.70293972,2520.2,2519.7,0.39686058]
[1746992455964,7.90873764,2520.3,2519.8,0.12668437]
[1746992456164,2.735,2520.2,2519.8,0.12668437]
[1746992456385,2.735,2520.2,2519.7,0.39686058]
[1746992456554,2.735,2520.2,2519.9,0.12668437]
[1746992456748,2.735,2520.2,2519.7,0.39686058]
[1746992456943,2.735,2520.2,2520.0,0.12668437]
[1746992457277,6.70293905,2520.2,2520.1,0.12030528]
[1746992457590,0.7642,2520.1,2519.4,0.39690794]
[1746992457757,3.94092337,2519.9,2519.4,0.39690794]
[1746992457956,0.7642,2520.1,2519.6,0.39688028]
[1746992457957,4.73231488,2520.1,2519.6,0.39688028]
[1746992458296,2.734,2520.0,2519.2,0.7542]
[1746992458460,6.70226363,2520.0,2519.7,0.12030528]
[1746992458660,2.734,2520.0,2519.6,0.39688088]
[1746992458992,2.734,2520.0,2519.7,0.12030528]
[1746992459495,2.734,2520.0,2519.6,0.39688088]
[1746992459697,2.734,2520.0,2519.7,0.12030528]
[1746992460063,6.70225797,2520.0,2519.5,0.39689726]
[1746992460261,4.73238841,2520.1,2519.6,0.12030528]
[1746992460472,4.73238841,2520.1,2519.5,0.39689872]
[1746992460791,3.96867137,2519.8,2519.6,0.12030528]
[1746992461290,3.9687272,2519.7,2519.2,1.15114401]
[1746992461495,3.94092337,2519.9,2519.3,0.39693565]
[1746992461649,3.94092337,2519.9,2519.5,0.39690108]
[1746992462155,3.94092337,2519.9,2519.3,0.39693545]
[1746992462156,3.96862741,2519.8,2519.3,0.39693545]
[1746992462487,7.90937738,2519.9,2519.4,0.39691811]
[1746992462872,3.96860601,2519.8,2519.3,0.39692838]
[1746992463249,7.90939289,2519.9,2519.4,0.39691209]
[1746992463679,3.96860771,2519.8,2519.3,0.39692738]
[1746992463876,3.96860771,2519.8,2518.7,3.13001695]
[1746992463877,0.7875,2519.5,2518.9,1.1796903]
[1746992464189,3.96920479,2519.4,2518.9,1.1796903]
[1746992464386,3.96968518,2519.1,2518.6,3.91473616]
[1746992464700,3.94092337,2519.3,2518.8,0.39700309]
[1746992465695,3.94092337,2519.3,2518.9,0.39699651]
[1746992465905,3.94092337,2519.3,2518.6,0.7827]
[1746992466189,3.96967475,2519.1,2518.6,0.7827]
[1746992466705,3.96953381,2519.2,2518.6,0.7827]
[1746992466706,3.96983775,2519.0,2518.6,0.7827]
[1746992466854,3.97001123,2518.9,2518.6,0.7827]
[1746992467050,6.70168916,2519.1,2518.6,0.7827]
[1746992467320,2.732,2519.1,2518.6,0.7827]
[1746992467703,6.70180197,2519.1,2518.6,1.17973674]
[1746992468318,6.70180197,2519.1,2518.6,0.7827]
[1746992468501,3.96986331,2519.0,2518.5,0.39705341]
[1746992468887,4.70882337,2519.0,2518.1,3.90741447]
[1746992469121,3.94092337,2518.4,2517.8,0.7753]
[1746992469331,3.94092337,2518.4,2517.8,1.17246969]
[1746992469475,2.732,2518.5,2517.9,0.39715636]
[1746992469823,11.65869662,2519.0,2518.0,0.81500715]
[1746992470113,6.70222142,2518.8,2518.2,0.39710904]
[1746992470512,3.97032836,2518.7,2518.3,0.11752664]
[1746992470678,6.70222076,2518.8,2518.3,0.11752664]
[1746992470876,6.70222076,2518.8,2518.2,0.39710904]
[1746992471076,6.70222076,2518.8,2518.3,0.11752664]
[1746992471398,6.70222076,2518.8,2518.2,0.39710904]
[1746992471602,6.70222076,2518.8,2518.3,0.11752664]
[1746992471911,6.70222076,2518.8,2518.2,0.39710904]
[1746992472111,6.70222076,2518.8,2518.3,0.11752664]
[1746992472490,6.70222076,2518.8,2518.2,0.39710904]
[1746992472811,6.70222076,2518.8,2518.3,0.11752664]
[1746992473014,3.94092337,2518.7,2518.1,0.39711771]
[1746992473215,6.70219185,2518.8,2518.2,0.11752664]
[1746992473216,3.94092337,2518.4,2518.2,0.11752664]
[1746992473386,7.91176728,2518.4,2517.9,0.39715422]
[1746992473593,3.94092337,2518.4,2518.0,0.39713671]
[1746992473915,7.91172886,2518.4,2518.1,0.11297176]
[1746992474118,3.97097856,2518.3,2518.1,0.11297176]
[1746992474315,3.94092337,2518.4,2517.8,1.17246529]
[1746992474619,3.97054388,2518.6,2518.1,0.39712311]
[1746992475031,3.97054388,2518.6,2518.0,0.39713219]
[1746992475230,3.97067797,2518.5,2518.1,0.11381815]
[1746992475523,3.97061046,2518.6,2518.0,0.39713304]
[1746992475697,3.9706446,2518.5,2518.0,0.39713304]
[1746992476028,3.97080453,2518.4,2518.1,0.1142165]
[1746992476225,3.97080453,2518.4,2517.9,0.39714842]
[1746992476413,3.97080453,2518.4,2518.0,0.1142165]
[1746992476601,3.97080453,2518.4,2517.9,0.39714842]
[1746992476801,3.97080453,2518.4,2518.0,0.11431609]
[1746992477007,3.97080453,2518.4,2517.9,0.39714842]
[1746992477227,3.97080453,2518.4,2518.0,0.11431609]
[1746992477521,3.97067516,2518.5,2518.0,0.39713791]
[1746992477928,3.97053135,2518.6,2518.1,0.5114315]
[1746992478122,2.98,2518.7,2518.1,0.5114315]
[1746992478431,2.731,2518.6,2518.2,1.34066573]
[1746992478823,3.97036072,2518.7,2518.2,1.34066573]
[1746992479121,6.70136072,2518.7,2518.2,1.34066573]
[1746992479421,6.70137972,2518.7,2518.2,1.34067226]
[1746992479624,6.70137972,2518.7,2518.2,1.22600759]
[1746992480196,9.68509497,2518.9,2518.3,0.39709327]
[1746992480449,2.731,2518.7,2518.3,0.39709327]
[1746992480593,2.731,2518.7,2518.4,0.39707571]
[1746992481590,2.731,2518.7,2518.3,0.39708559]
[1746992481790,6.70139478,2518.7,2518.2,1.22600052]
[1746992482043,3.94092337,2518.4,2517.9,0.8218]
[1746992482195,3.9710443,2518.3,2517.9,0.8218]
[1746992482403,7.91228238,2518.1,2517.6,1.21899904]
[1746992482599,7.91228238,2518.1,2517.7,0.39718644]
[1746992482600,3.94092337,2518.1,2517.7,0.39718644]
[1746992483160,3.97172299,2517.8,2517.3,3.95403934]
[1746992483318,0.8326,2517.9,2517.3,1.26193024]
[1746992483515,4.80424319,2517.9,2517.4,0.39723282]
[1746992483902,4.80424319,2517.9,2517.3,1.21904502]
[1746992484103,4.80424319,2517.9,2517.4,0.3972335]
[1746992484417,3.97164319,2517.9,2517.4,0.3972335]
[1746992484604,6.70141038,2518.0,2517.3,0.8218]
[1746992485360,3.97191123,2517.7,2517.3,0.8218]
[1746992486123,7.91271211,2517.8,2517.3,0.8218]
[1746992486747,7.91271211,2517.8,2517.3,1.21904838]
[1746992487125,7.91271211,2517.8,2517.3,0.8218]
[1746992487325,7.91271211,2517.8,2517.4,0.10477957]
[1746992488147,7.48284704,2517.8,2517.4,0.10477957]
[1746992488351,3.97196046,2517.7,2517.4,0.10477957]
[1746992488651,3.97217505,2517.6,2517.4,0.10477957]
[1746992488821,3.97217505,2517.6,2517.1,1.22037664]
[1746992488999,3.97217505,2517.6,2517.2,0.10477957]
[1746992489202,3.97190884,2517.7,2517.2,0.5020426]
[1746992489907,3.97206852,2517.6,2517.2,0.10477957]
[1746992490640,4.74075538,2517.7,2517.2,0.10477957]
[1746992491445,3.97204802,2517.6,2517.2,0.10477957]
[1746992491603,4.74073464,2517.7,2517.2,0.50204404]
[1746992492040,0.7688,2517.7,2517.2,0.10477957]
[1746992492344,4.74076212,2517.7,2517.2,0.50204622]
[1746992492544,0.7688,2517.7,2517.3,0.39724368]
[1746992492721,7.48279076,2517.8,2517.3,0.39724368]
[1746992492922,2.73,2517.7,2517.4,0.11453427]
[1746992493159,2.73,2517.7,2517.3,0.39724368]
[1746992493458,2.73,2517.7,2517.4,0.11453427]
[1746992493606,2.73,2517.7,2517.3,0.39724368]
[1746992493802,2.73,2517.7,2517.4,0.11453427]
[1746992494010,2.73,2517.7,2517.3,0.39724368]
[1746992494208,2.73,2517.7,2517.4,0.11453427]
[1746992494409,2.73,2517.7,2517.3,0.39724368]
[1746992494647,2.73,2517.7,2517.4,0.11453427]
[1746992494862,2.73,2517.7,2517.3,0.39724368]
[1746992495061,2.73,2517.7,2517.5,0.11453427]
[1746992495356,2.73,2517.7,2517.3,0.39724368]
[1746992495560,2.98,2518.1,2517.6,0.7877]
[1746992495705,2.98,2518.1,2517.8,0.39717093]
[1746992495911,6.95136141,2518.1,2517.6,0.7877]
[1746992496124,2.98,2518.1,2517.7,0.51137358]
[1746992496425,2.732,2518.2,2517.8,0.3971654]
[1746992497637,2.732,2518.2,2517.9,0.39715302]
[1746992498041,2.732,2518.2,2518.0,0.7618]
[1746992498644,2.732,2518.2,2518.1,0.39712481]
[1746992498942,2.732,2518.2,2518.0,1.15893449]
[1746992499462,2.728,2518.5,2518.1,0.39712194]
[1746992499626,6.69867429,2518.5,2518.0,1.15893878]
[1746992499960,3.97082487,2518.4,2518.0,0.7618]
[1746992501370,14.291,2518.6,2518.0,0.7618]
[1746992501532,5.711,2518.9,2518.6,0.39704553]
[1746992501721,3.94092337,2519.1,2518.5,0.7631]
[1746992502056,3.97000967,2518.9,2518.5,0.7631]
[1746992502364,3.97005723,2518.9,2518.5,0.7631]
[1746992502565,3.97005723,2518.9,2517.4,0.55]
[1746992502566,0.8112,2517.2,2516.1,0.8131]
[1746992502765,11.45679141,2517.2,2516.6,0.7631]
[1746992503265,2.732,2517.2,2516.6,0.7631]
[1746992503466,6.70466804,2517.2,2516.6,0.7631]
[1746992503633,2.732,2517.2,2516.6,0.7631]
[1746992504224,2.732,2517.2,2517.1,0.13052639]
[1746992504720,6.70466804,2517.2,2517.1,0.13052639]
[1746992506253,2.728,2517.3,2517.1,0.13052639]
[1746992506969,6.70058229,2517.3,2517.1,0.05]
[1746992507332,6.70058229,2517.3,2517.2,0.08052639]
[1746992507535,6.70058229,2517.3,2517.1,0.05]
[1746992507734,3.97231709,2517.5,2517.1,0.05]
[1746992507950,2.728,2517.2,2517.1,0.8611]
[1746992508649,2.728,2517.2,2517.1,0.94704831]
[1746992511772,6.92092337,2517.7,2517.3,0.39724085]
[1746992511773,2.98,2517.7,2517.3,0.39724085]
[1746992511977,2.728,2517.5,2517.2,0.39726129]
[1746992512276,2.728,2517.5,2517.3,0.48319528]
[1746992512432,2.728,2517.5,2517.3,0.39724697]
[1746992512972,2.728,2517.6,2517.3,0.39724697]
[1746992513558,2.728,2517.6,2517.1,0.8611]
[1746992513757,2.98,2517.7,2517.3,0.39723847]
[1746992513930,2.728,2517.6,2517.4,0.39722669]
[1746992514130,3.94092337,2518.0,2517.1,0.8611]
[1746992514380,2.95024263,2517.9,2517.6,0.7929]
[1746992515266,2.728,2517.8,2517.6,1.19010282]
[1746992515436,2.728,2517.8,2517.7,0.08594831]
[1746992515835,3.94092337,2518.0,2517.6,0.7929]
[1746992516154,2.728,2517.9,2517.6,0.7929]
[1746992516470,2.728,2517.9,2517.7,0.08594831]
[1746992516673,2.728,2517.9,2517.6,0.7929]
[1746992516876,2.728,2517.9,2517.8,0.08594831]
[1746992517082,6.6995636,2517.9,2517.6,0.7929]
[1746992517370,6.6995636,2517.9,2517.8,0.08594831]
[1746992517577,6.6995636,2517.9,2517.6,0.7929]
[1746992517776,6.6995636,2517.9,2517.4,1.19013344]
[1746992517976,3.97227438,2517.5,2517.1,0.8459]
[1746992518175,7.91345345,2517.3,2517.1,0.05]
[1746992518471,2.728,2517.2,2517.1,0.05]
[1746992519472,6.70066804,2517.2,2517.1,0.05]
[1746992519887,2.728,2517.2,2517.1,0.05]
[1746992520375,3.97224134,2517.5,2517.1,0.05]
[1746992520548,2.728,2517.2,2517.1,0.05]
[1746992521378,6.70024134,2517.5,2517.1,0.05]
[1746992521542,2.728,2517.3,2517.1,0.05]
[1746992522173,6.70057794,2517.3,2517.1,0.05]
[1746992522785,3.97266804,2517.2,2517.1,0.05]
[1746992523842,4.79246804,2517.2,2517.1,0.05]
[1746992524039,10.79846804,2517.2,2517.1,0.05]
[1746992524665,11.02065041,2517.2,2517.1,0.05]
[1746992525068,3.97397866,2516.4,2516.1,0.84]
[1746992525268,3.97397866,2516.4,2516.2,0.08099605]
[1746992525269,2.728,2516.4,2516.2,0.08099605]
[1746992525488,2.728,2516.4,2516.1,0.84]
[1746992525798,2.728,2516.4,2516.2,0.08099605]
[1746992526149,2.728,2516.4,2516.1,0.05]
[1746992526483,2.728,2516.4,2516.2,0.08099605]
[1746992526683,2.728,2516.4,2516.1,0.44743847]
[1746992526882,2.728,2516.4,2516.2,0.08099605]
[1746992527870,2.728,2516.4,2516.1,0.05]
[1746992528068,2.728,2516.4,2516.2,0.08960621]
[1746992528282,2.728,2516.4,2516.1,0.05]
[1746992528486,2.728,2516.4,2516.2,0.08960621]
[1746992528680,2.728,2516.4,2516.1,0.05]
[1746992528885,2.728,2516.4,2516.2,0.09015394]
[1746992529181,2.728,2516.4,2516.1,0.05]
[1746992529572,2.728,2516.4,2516.2,0.09015394]
[1746992529904,2.728,2516.4,2516.1,0.44743899]
[1746992530106,2.728,2516.4,2516.2,0.09015394]
[1746992530308,2.98,2516.9,2516.2,0.8046]
[1746992530309,3.773,2516.9,2516.2,0.8046]
[1746992530497,2.728,2516.9,2516.5,0.39736704]
[1746992530662,6.70123642,2516.9,2516.2,1.20202403]
[1746992530867,2.728,2516.9,2516.2,0.8046]
[1746992531127,6.70124675,2516.9,2516.4,0.39738584]
[1746992532207,3.97331722,2516.8,2516.3,0.39740052]
[1746992533407,8.70741367,2516.7,2516.1,0.05]
[1746992533631,3.97361519,2516.6,2516.1,0.05]
[1746992533785,8.70742918,2516.7,2516.2,0.48632572]
[1746992534101,3.94092337,2516.7,2516.3,0.39740419]
[1746992534266,7.91450929,2516.7,2516.2,0.39741615]
[1746992534897,7.91450929,2516.7,2516.3,0.08895896]
[1746992535096,7.91450929,2516.7,2516.2,0.39741615]
[1746992535691,7.91450929,2516.7,2516.1,0.05]
[1746992535692,3.94092337,2516.7,2516.1,0.05]
[1746992535909,3.97396996,2516.4,2516.1,0.05]
[1746992536155,6.70208894,2516.3,2516.2,0.08895896]
[1746992536311,6.70208894,2516.3,2516.1,0.05]
[1746992536518,3.97424688,2516.2,2516.1,0.05]
[1746992536705,2.728,2516.3,2516.1,0.13247436]
[1746992537108,2.728,2516.3,2516.1,0.05]
[1746992537788,2.728,2516.3,2516.2,0.08401714]
[1746992538289,2.728,2516.3,2516.1,0.05]
[1746992538531,2.728,2516.3,2516.2,0.08401714]
[1746992538825,3.94092337,2516.4,2516.1,0.05]
[1746992538826,3.94092337,2516.4,2516.1,0.44744042]
[1746992539024,2.728,2516.3,2516.1,0.44744042]
[1746992539390,2.728,2516.3,2516.2,0.08401714]
[1746992539925,2.728,2516.3,2516.1,0.44743989]
[1746992540227,3.94092337,2516.4,2516.2,0.08401714]
[1746992540383,2.728,2516.3,2516.2,0.08401714]
[1746992540584,2.728,2516.3,2516.1,0.05]
[1746992540787,2.728,2516.3,2516.1,0.44743994]
[1746992540984,2.728,2516.3,2516.2,0.08401714]
[1746992541187,2.728,2516.3,2516.1,0.05]
[1746992541188,6.70208894,2516.3,2516.1,0.05]
[1746992541420,2.728,2516.3,2516.1,0.05]
[1746992541689,2.728,2516.3,2516.2,0.08401714]
[1746992541927,2.728,2516.3,2516.1,0.05]
[1746992542108,2.728,2516.3,2516.2,0.08401714]
[1746992542288,2.728,2516.3,2516.1,0.05]
[1746992542517,2.728,2516.3,2516.2,0.0839176]
[1746992542726,6.70208894,2516.3,2516.1,0.05]
[1746992542956,4.80624688,2516.2,2516.1,0.05]
[1746992543831,5.02822476,2516.2,2516.1,0.05]
[1746992544535,0.22197788,2516.2,2516.1,0.05]
[1746992544850,5.67797788,2516.2,2516.1,0.05]
[1746992545058,9.65222476,2516.2,2516.1,0.05]
[1746992545373,9.43024688,2516.2,2516.1,0.05]
[1746992545717,10.21854688,2516.2,2516.1,0.05]
[1746992547021,10.44065474,2516.2,2516.1,0.05]
[1746992547222,13.42065474,2516.2,2516.1,0.05]
[1746992549620,13.97065474,2516.2,2516.1,0.05]
[1746992549826,13.42065474,2516.2,2516.1,0.05]
[1746992552073,13.42165474,2516.2,2516.1,0.05]
[1746992553157,7.96465474,2516.2,2516.1,0.05]
[1746992553352,12.63335474,2516.2,2516.1,0.05]
[1746992554233,7.17635474,2516.2,2516.1,0.05]
[1746992554532,12.63335474,2516.2,2516.1,0.05]
[1746992558143,3.20210786,2516.2,2516.1,0.05]
[1746992558346,8.65810786,2516.2,2516.1,0.05]
[1746992559256,9.65235474,2516.2,2516.1,0.05]
[1746992559767,5.67810786,2516.2,2516.1,0.05]
[1746992560371,9.65235474,2516.2,2516.1,0.05]
[1746992562777,5.67810786,2516.2,2516.1,0.05]
[1746992562936,9.65235474,2516.2,2516.1,0.05]
[1746992563292,5.67810786,2516.2,2516.1,0.05]
[1746992564077,2.94910786,2516.2,2516.1,0.05]
[1746992564573,6.92335474,2516.2,2516.1,0.05]
[1746992565338,2.94910786,2516.2,2516.1,0.05]
[1746992565780,2.95001104,2516.2,2516.1,0.05]
[1746992565982,6.92425792,2516.2,2516.1,0.05]
[1746992570181,2.95001104,2516.2,2516.1,0.05]
[1746992570491,6.92425792,2516.2,2516.1,0.05]
[1746992571246,2.95001104,2516.2,2516.1,0.05]
[1746992571437,6.92425792,2516.2,2516.1,0.05]
[1746992571844,0.22301104,2516.2,2516.1,0.05]
[1746992572063,5.67801104,2516.2,2516.1,0.05]
[1746992573345,7.5734573,2516.2,2516.1,0.05]
[1746992573560,0.22301104,2516.2,2516.1,0.05]
[1746992573763,0.22301104,2516.2,2516.1,0.8304]
[1746992573949,2.94801104,2516.2,2516.1,0.8304]
[1746992574952,2.94801104,2516.2,2516.1,0.91839904]
[1746992575151,2.94801104,2516.2,2516.1,0.8304]
[1746992575790,0.22301104,2516.2,2516.1,0.8304]
[1746992576488,1.89544626,2516.3,2516.1,0.8304]
[1746992579192,1.89544626,2516.3,2516.2,0.08799904]
[1746992579381,1.89544626,2516.3,2516.1,0.8304]
[1746992579587,1.89544626,2516.3,2516.2,0.08705328]
[1746992579782,2.11838648,2516.3,2516.1,0.8304]
[1746992580381,2.11838648,2516.3,2516.2,0.08705328]
[1746992580587,2.11838648,2516.3,2516.1,1.22783736]
[1746992580789,2.11838648,2516.3,2516.2,0.08705328]
[1746992581393,2.11838648,2516.3,2516.1,0.8304]
[1746992582096,1.89544626,2516.3,2516.2,0.08705328]
[1746992582399,1.89544626,2516.3,2516.1,0.8304]
[1746992583103,1.89544626,2516.3,2516.2,0.08705328]
[1746992583594,1.89544626,2516.3,2516.1,0.8304]
[1746992584002,1.89544626,2516.3,2516.2,0.08705328]
[1746992584215,2.11836744,2516.3,2516.1,0.8304]
[1746992584906,1.89544626,2516.3,2516.1,1.22784028]
[1746992585266,1.89544626,2516.3,2516.2,0.08526128]
[1746992585668,1.89544626,2516.3,2516.1,1.22784028]
[1746992586168,1.89544626,2516.3,2516.2,0.08526128]
[1746992586406,1.89544626,2516.3,2516.1,1.22784028]
[1746992586606,1.89544626,2516.3,2516.2,0.08526128]
[1746992586905,1.89544626,2516.3,2516.1,1.22784028]
[1746992587282,0.8041,2517.2,2516.3,0.7933]
[1746992587481,0.22281018,2517.1,2516.6,0.7933]
[1746992587685,0.22281018,2517.1,2517.0,0.39728591]
[1746992587893,0.22281018,2517.1,2516.9,0.39731088]
[1746992588272,2.11825644,2517.1,2517.0,0.08272338]
[1746992588699,2.11825644,2517.1,2516.8,0.39732219]
[1746992588700,1.89544626,2517.1,2516.8,0.39732219]
[1746992589170,1.89544626,2517.1,2516.9,0.39731027]
[1746992589610,1.89544626,2517.3,2517.0,0.39728982]
[1746992589817,4.61844626,2517.3,2517.1,0.08108175]
[1746992590306,4.61844626,2517.3,2516.7,1.22614053]
[1746992590510,1.89544626,2517.1,2516.8,0.39732002]
[1746992590686,1.89544626,2517.1,2516.8,0.47760599]
[1746992592879,1.89544626,2517.1,2516.9,0.39731226]
[1746992593622,1.89544626,2517.1,2517.0,0.47758434]
[1746992595076,1.89544626,2517.1,2517.0,0.08028597]
[1746992595479,0.7996,2516.9,2516.1,0.05]
[1746992595678,1.89544626,2516.2,2516.1,0.05]
[1746992595893,4.61644626,2516.2,2516.1,0.05]
[1746992597385,6.6640173,2516.2,2516.1,0.05]
[1746992599480,2.721,2516.2,2516.1,0.05]
[1746992601588,6.6640173,2516.2,2516.1,0.05]
[1746992604296,14.11806418,2516.2,2516.1,0.05]
[1746992605129,14.33942108,2516.2,2516.1,0.05]
[1746992608518,14.33842108,2516.2,2516.1,0.05]
[1746992610797,14.88842108,2516.2,2516.1,0.05]
[1746992610985,14.88842108,2516.2,2515.1,0.05]
[1746992610986,7.91858179,2515.4,2515.1,0.05]
[1746992611328,3.97582697,2515.2,2515.1,0.05]
[1746992611618,2.719,2515.3,2515.1,0.05]
[1746992612437,6.69478851,2515.3,2515.1,0.05]
[1746992612990,2.719,2515.3,2515.1,0.05]
[1746992614490,4.7028173,2515.8,2515.1,0.05]
[1746992614743,6.9230173,2516.1,2515.7,0.39750207]
[1746992615033,2.718,2515.8,2515.7,0.39750367]
[1746992615191,2.718,2515.8,2515.7,1.18020367]
[1746992615392,2.718,2515.8,2515.7,0.7827]
[1746992615592,2.718,2515.8,2515.7,1.18020367]
[1746992616012,2.721,2516.1,2515.7,1.18020367]
[1746992616238,2.718,2516.0,2515.7,1.18020367]
[1746992616618,2.718,2516.0,2515.8,0.39748747]
[1746992617135,2.718,2516.0,2515.8,0.39748787]
[1746992617720,2.98,2516.5,2515.9,0.7827]
[1746992617913,5.439,2516.6,2516.1,0.39742943]
[1746992618536,5.439,2516.6,2516.2,0.39742265]
[1746992619241,2.98,2517.0,2516.7,0.39734573]
[1746992619440,2.718,2516.9,2516.6,0.7946]
[1746992620444,18.2440173,2517.2,2516.7,0.39733019]
[1746992620633,2.717,2517.1,2516.8,0.3973224]
[1746992621527,2.717,2517.1,2516.7,0.03973097]
[1746992621851,2.717,2517.1,2516.9,0.39730649]
[1746992622250,8.72211724,2517.8,2517.1,0.7946]
[1746992622543,3.9718834,2517.7,2517.1,1.19187487]
[1746992623788,3.97204759,2517.6,2517.1,1.19187487]
[1746992624054,3.97205239,2517.6,2517.1,1.19187487]
[1746992625564,4.7231173,2517.5,2516.9,0.7681]
[1746992625852,4.7231173,2517.5,2516.9,1.16541414]
[1746992625853,3.9430173,2517.2,2516.9,1.16541414]
[1746992626053,2.716,2517.3,2517.0,0.39728656]
[1746992626410,2.716,2517.3,2516.9,0.7681]
[1746992626947,2.716,2517.3,2516.9,1.16541388]
[1746992627947,2.716,2517.3,2516.9,1.16541078]
[1746992628261,2.715,2517.4,2517.1,0.39727505]
[1746992628752,2.715,2517.4,2517.2,0.39726498]
[1746992628947,2.715,2517.4,2517.3,0.8109]
[1746992629306,7.91482265,2517.8,2517.3,1.20814966]
[1746992629545,2.715,2517.7,2517.3,0.8109]
[1746992629744,3.97215341,2517.6,2517.3,0.8109]
[1746992629951,6.68695744,2517.7,2517.3,0.8109]
[1746992630314,3.97205922,2517.6,2517.3,0.8109]
[1746992631748,3.9430173,2517.8,2517.3,0.8109]
[1746992631940,2.714,2517.7,2517.4,0.39722516]
[1746992632245,2.714,2517.7,2517.3,0.8109]
[1746992632246,2.714,2517.7,2517.3,1.2081454]
[1746992633564,0.7614,2516.4,2514.8,1.9519916]
[1746992633761,3.9430173,2516.5,2515.0,0.39760955]
[1746992634060,7.91582213,2517.2,2515.3,8.39755616]
[1746992634262,2.714,2517.0,2515.4,9.11563015]
[1746992634420,3.9430173,2516.9,2516.2,0.39741251]
[1746992634624,3.9430173,2516.6,2516.0,0.39745286]
[1746992634945,3.9430173,2516.3,2515.7,0.39749383]
[1746992635157,6.6570173,2516.3,2515.7,0.39749383]
[1746992635320,10.63112908,2516.3,2515.7,0.39749383]
[1746992636669,10.63112908,2516.3,2515.7,1.18649383]
[1746992636850,10.63112908,2516.3,2515.8,0.39748435]
[1746992636851,2.714,2516.3,2515.8,0.39748435]
[1746992638061,6.68810615,2516.3,2515.8,0.39748435]
[1746992638261,2.714,2516.3,2515.8,0.39748435]
[1746992638959,6.68813974,2516.3,2515.7,1.18649609]
[1746992639274,2.714,2516.3,2515.8,0.39748278]
[1746992640171,2.714,2516.3,2516.0,0.3974489]
[1746992640377,3.97371008,2516.6,2516.0,0.39744539]
[1746992640545,2.714,2516.5,2516.1,0.39743888]
[1746992642043,2.713,2516.6,2516.1,0.39743888]
[1746992642665,2.713,2516.6,2515.7,0.789]
[1746992642845,3.97438368,2516.2,2515.7,0.789]
[1746992643043,3.97438368,2516.2,2515.7,1.18650327]
[1746992643246,3.97438368,2516.2,2515.7,1.18650293]
[1746992643541,7.9168695,2516.5,2515.8,0.03974545]
[1746992643757,7.9168695,2516.5,2515.9,0.39746439]
[1746992644375,3.97396098,2516.4,2515.8,0.39748007]
[1746992644883,7.91687141,2516.5,2515.9,0.3974696]
[1746992645049,7.91687141,2516.5,2516.0,0.3974488]
[1746992645545,7.91687141,2516.5,2515.9,0.39746452]
[1746992645747,7.91687141,2516.5,2515.8,0.43723171]
[1746992645748,7.91687141,2516.5,2516.0,0.39745341]
[1746992646184,3.9430173,2516.8,2516.3,0.39739469]
[1746992646482,2.713,2516.7,2516.3,0.39739469]
[1746992647177,6.6864904,2516.7,2516.2,1.18122128]
[1746992647594,3.9430173,2516.8,2516.3,0.39740001]
[1746992647876,2.713,2516.7,2516.3,0.03973945]
[1746992648082,3.9730583,2517.0,2516.5,0.39737674]
[1746992648280,2.713,2516.8,2516.5,0.39736437]
[1746992648481,6.95222895,2517.5,2516.8,0.39731574]
[1746992648482,2.713,2517.0,2516.8,0.39731574]
[1746992648684,2.713,2517.2,2516.7,0.7838]
[1746992648885,2.713,2517.2,2516.9,0.39730191]
[1746992649194,2.713,2517.2,2516.9,0.39731415]
[1746992649350,3.9430173,2517.4,2517.0,0.39729831]
[1746992649550,6.6560173,2517.4,2517.0,0.39729831]
[1746992650686,6.6560173,2517.4,2516.9,0.39730658]
[1746992650990,3.9430173,2517.1,2516.7,1.18113544]
[1746992651151,3.9430173,2517.1,2516.8,0.39732985]
[1746992651716,3.9430173,2517.1,2516.7,0.7838]
[1746992651717,3.9430173,2517.1,2516.7,1.18113548]
[1746992653109,3.9430173,2517.1,2516.8,0.39732939]
[1746992658089,6.6560173,2517.4,2517.0,0.39729486]
[1746992659415,10.62837998,2517.4,2516.9,0.39730672]
[1746992659907,3.9430173,2517.3,2516.9,0.39730672]
[1746992660414,3.9430173,2517.3,2516.7,0.7838]
[1746992660619,3.9430173,2517.3,2517.1,0.39728208]
[1746992660916,3.9430173,2517.3,2517.0,0.39729097]
[1746992661236,7.9155285,2517.3,2516.8,0.39732116]
[1746992661462,3.9430173,2517.0,2516.7,0.39733708]
[1746992662317,3.9430173,2517.3,2516.8,0.7986]
[1746992662534,3.9430173,2517.3,2517.0,0.39728918]
[1746992663572,6.9515746,2517.9,2516.5,0.3973649]
[1746992663573,4.7626173,2518.0,2517.5,0.39721531]
[1746992663869,2.711,2517.9,2517.5,0.39721531]
[1746992664230,2.711,2518.0,2517.7,0.39717477]
[1746992664530,2.711,2518.0,2517.7,0.39717527]
[1746992665176,6.6570173,2518.2,2517.8,0.39717177]
[1746992665383,2.711,2518.1,2517.9,1.20435631]
[1746992665675,2.711,2518.1,2517.9,0.8072]